Cogmind - Beta 13 @@@ ROGUE MODE // 2024.04.03 @ 10:05:12 Player: feesh Result: Self-destructed Performance ------------- Evolutions (1) 500 Regions Visited (2) 400 Robots Destroyed (20) 100 Value Destroyed (309) 309 Prototype IDs (3) 60 Alien Tech Used (0) 0 Bonus (11) 11 TOTAL SCORE: 1380 Bonus ------- High Alert Combat Kills 11 Cogmind --------- Core Integrity 325/400 Matter 184/300 Energy 250/250 System Corruption 0% Temperature Cool (0) Movement Walking (120) Location -9/Materials Parts ------- > --- POWER (1) -------- Ion Engine > --- PROPULSION (3) --- Aluminum Leg Aluminum Leg > --- UTILITY (3) ------ Small Storage Unit Signal Interpreter Propulsion Shielding > --- WEAPON (2) ------- Grenade Launcher > --- INVENTORY (8) ---- Light Ion Engine EM Pulse Gun Medium Laser Small Laser Peak State ------------ > --- POWER ------------ Ion Engine > --- PROPULSION ------- Aluminum Leg Aluminum Leg > --- UTILITY ---------- Small Storage Unit Signal Interpreter Propulsion Shielding > --- WEAPON ----------- Beam Cannon Grenade Launcher > --- INVENTORY -------- EM Pulse Gun Medium Laser Small Laser [Rating: 8] Favorites ----------- Power Light Ion Engine Engine Light Ion Engine Propulsion Compact Wheel Leg Aluminum Leg Wheel Compact Wheel Utility Small Storage Unit Storage Small Storage Unit Processor Signal Interpreter Protection Propulsion Shielding Weapon Beam Cannon Energy Gun EM Pulse Gun Energy Cannon Beam Cannon Launcher Grenade Launcher Build | -11 -10 -9 ------- Run | Yrd Mat Mat Slots Evolved 2 | . . 2 Power . | . . . Propulsion 1 | . . 1 Utility 1 | . . 1 Weapon . | . . . Parts Attached 13 | 6 2 5 Power 2 | 1 . 1 Engine 2 | 1 . 1 Core . | . . . Reactor . | . . . Propulsion 4 | 2 . 2 Treads . | . . . Leg 2 | . . 2 Wheel 2 | 2 . . Hover . | . . . Flight . | . . . Utility 3 | 1 1 1 Device . | . . . Storage 1 | 1 . . Processor 1 | . 1 . Hackware . | . . . Protection 1 | . . 1 Artifact . | . . . Weapon 4 | 2 1 1 Energy Gun 2 | 2 . . Energy Cannon 1 | . 1 . Ballistic Gun . | . . . Ballistic Cannon . | . . . Launcher 1 | . . 1 Special Weapon . | . . . Impact Weapon . | . . . Slashing Weapon . | . . . Piercing Weapon . | . . . Special Melee Weapon . | . . . Unidentified Prototypes . | . . . Parts Lost 4 | . . 4 Power 1 | . . 1 Propulsion 2 | . . 2 Utility . | . . . Weapon 1 | . . 1 Highest Loss Streak 3 | . . 3 To Critical Strikes . | . . . Average Slot Usage (%) 91 | . 96 77 Engine 13 | . 14 11 Leg 3 | . . 12 Wheel 22 | . 28 5 Storage 13 | . 14 11 Processor 10 | . 10 11 Protection 1 | . . 6 Energy Gun 11 | . 16 . Energy Cannon 11 | . 11 9 Launcher 2 | . . 11 Naked Turns . | . . . Heaviest Build 17 | 12 13 17 Greatest Support 32 | 32 32 20 Greatest Overweight (x) . | . . . Average Overweight (x) . | . . . Largest Inventory Capacity 8 | 8 8 8 Average Capacity 7 | 7 8 8 Most Carried 7 | 4 7 7 Average Carried 5 | 1 6 4 Final Capacity 8 | 8 8 8 Final Carried 7 | 4 7 4 Class Distribution -------------------- 100% | Mutant Dominant Class ---------------- Mutant | -10/Materials Mutant | -9/Materials Resources | -11 -10 -9 ----------- Run | Yrd Mat Mat Matter Collected 275 | 220 55 . Remotely . | . . . Salvage Created 325 | . 204 121 Parts 45 | . 18 27 Haulers Intercepted . | . . . Recyclers Shooed . | . . . Parts Field Recycled . | . . . Retrieved Matter . | . . . Parts Self-Destructed . | . . . Prevented . | . . . Kills | -11 -10 -9 ------- Run | Yrd Mat Mat Combat Hostiles Destroyed 17 | . 5 12 Guns 4 | . 4 . Cannons 5 | . 1 4 AOE 8 | . . 8 Classes Destroyed 5 | . 3 2 Worker 1 | . . 1 Watcher 2 | . 2 . Swarmer 14 | . 3 11 Grunt 2 | . 2 . Sentry 1 | . . 1 Best Kill Streak 11 | . 3 11 Combat Bots Only 11 | . 3 11 Max Kills in Single Turn 3 | . 1 3 Gunslinging . | . . . Exploded 3 | . . 3 Melee . | . . . Uniques/NPCs Destroyed . | . . . Combat | -11 -10 -9 -------- Run | Yrd Mat Mat Hostile Shots Fired 58 | . 25 33 Missed 11 | . 3 8 Damage Taken 489 | 1 244 244 Core 139 | . 64 75 Absorbed by Shields . | . . . Redirected to Shielding 4 | . . 4 Core Remaining (%) 87 | 100 74 . Volleys Fired 37 | . 20 17 Largest 2 | . 2 1 Hottest 100 | . 100 60 Shots Fired 57 | . 40 17 Gun 20 | . 20 . Cannon 28 | . 20 8 Launcher 9 | . . 9 Special . | . . . Kinetic . | . . . Thermal 28 | . 20 8 Explosive 9 | . . 9 Electromagnetic 20 | . 20 . Robot Hit Streak 10 | . 9 10 Robot Miss Streak 3 | . 3 1 Penetration Max . | . . . Secondary Targets . | . . . Shots Hit Robots 33 | . 20 13 Core Hits 26 | 1 9 16 Critical Kills . | . . . Critical Parts Destroyed . | . . . Critical Strikes 1 | . 1 . Corrupt 1 | . 1 . Melee Attacks . | . . . Impact . | . . . Slashing . | . . . Piercing . | . . . Sneak Attacks . | . . . Combat Hostiles . | . . . Follow-up Attacks . | . . . Damage Inflicted 965 | 2 301 662 Guns 142 | . 142 . Cannons 283 | . 159 124 Explosions 536 | . . 536 Melee . | . . . Ramming 4 | 2 . 2 Kinetic . | . . . Thermal 283 | . 159 124 Explosive 536 | . . 536 Electromagnetic 142 | . 142 . Impact . | . . . Slashing . | . . . Piercing . | . . . Highest Corruption . | . . . Average Corruption . | . . . Corruption Purged . | . . . Corruption Blocked . | . . . Overload Shots . | . . . Overflow Damage 11 | . . 11 Projectiles . | . . . Explosions 11 | . . 11 Melee . | . . . Knockbacks . | . . . Impact . | . . . Kinetic . | . . . Secondary . | . . . Self-Inflicted Damage 1 | 1 . . Shots . | . . . Rammed 1 | 1 . . Targets Rammed 2 | 1 . 1 Kicked 1 | . . 1 Crushed . | . . . Highest Temperature 408 | . 408 112 Average Temperature 126 | . 144 51 Received Heat Transfer 132 | . 96 36 Effects 4 | . 4 . Shutdowns 2 | . 2 . Energy Bleed 1 | . 1 . Short Circuit 1 | . 1 . Siege Activations . | . . . Robots Corrupted . | . . . Combat Hostiles . | . . . Parts Fried . | . . . Impact Corruptions . | . . . Robots Melted . | . . . Combat Hostiles . | . . . Parts Melted 2 | . 2 . Heat Transferred 592 | . 333 259 Parts Sabotaged . | . . . Parts Stolen . | . . . Parts Stripped . | . . . Power Chain Reactions . | . . . Alert | -11 -10 -9 ------- Run | Yrd Mat Mat Peak Influence 452 | . 243 452 Initial 102 | . . 102 Average 134 | . 104 286 Maximum Alert Level 2 | . 1 2 Low Security (%) 76 | 100 88 29 Level 1 18 | . 11 49 Level 2 4 | . . 21 Level 3 . | . . . Level 4 . | . . . Level 5 . | . . . High Security . | . . . Max Security . | . . . Squads Dispatched . | . . . Investigation . | . . . Extermination . | . . . Reinforcement . | . . . Assault . | . . . Garrison . | . . . Intercept . | . . . Searches Triggered . | . . . Construction Impeded . | . . . Haulers Reinforced . | . . . Active Scanning Responses . | . . . Cargo Convoy Interrupts . | . . . Stealth | -11 -10 -9 --------- Run | Yrd Mat Mat Distress Signals . | . . . Communications Jammed . | . . . Distress Signals . | . . . Times Spotted 23 | . 8 15 Peak Tracking Total 8 | . 4 8 Tactical Retreats . | . . . Traps | -11 -10 -9 ------- Run | Yrd Mat Mat Traps Triggered . | . . . Indirectly . | . . . Trap Hack Attempts . | . . . Triggered . | . . . Disarmed . | . . . Reprogrammed . | . . . Reused . | . . . Traps Extracted . | . . . Installed . | . . . Triggered . | . . . Machines | -11 -10 -9 ---------- Run | Yrd Mat Mat Machines Disabled 1 | . 1 . Max in Single Turn 1 | . 1 . Machines Repaired . | . . . Machines Dismantled . | . . . Machines Sabotaged . | . . . Overloaded Fab Kills . | . . . Hacking | -11 -10 -9 --------- Run | Yrd Mat Mat Machines Accessed 4 | . 3 1 Terminals 2 | . 2 . Fabricators . | . . . Repair Stations . | . . . Recycling Units 2 | . 1 1 Scanalyzers . | . . . Garrison Access . | . . . Total Hacks 6 | . 5 1 Successful 4 | . 3 1 Failed 2 | . 2 . Catastrophic . | . . . Database Lockouts . | . . . Manual . | . . . Terminals 3 | . 3 . Fabricators . | . . . Repair Stations . | . . . Recycling Units 3 | . 2 1 Scanalyzers . | . . . Garrison Access . | . . . Terminal Hacks 2 | . 2 . Prototype ID Bank 1 | . 1 . Locate Traps 1 | . 1 . Fabricator Hacks . | . . . Repair Station Hacks . | . . . Recycling Unit Hacks 2 | . 1 1 Report Inventory 2 | . 1 1 Scanalyzer . | . . . Garrison Access Hacks . | . . . Unauthorized Hacks . | . . . Terminals . | . . . Fabricators . | . . . Repair Stations . | . . . Recycling Units . | . . . Scanalyzers . | . . . Garrison Access . | . . . Data Cores Recovered . | . . . Used . | . . . Hacking Detections 2 | . 2 . Full Trace Events . | . . . Feedback Events . | . . . Feedback Blocked . | . . . Robot Schematics Acquired . | . . . Robots Built . | . . . Authchips . | . . . Time . | . . . Total Robot Build Rating . | . . . Part Schematics Acquired . | . . . Parts Built . | . . . Authchips . | . . . Time . | . . . Total Part Build Rating . | . . . Parts Repaired . | . . . Time . | . . . Parts Recycled . | . . . Recycled Matter . | . . . Retrieved Matter . | . . . Retrieved Components . | . . . Parts Scanalyzed . | . . . Part Schematics Acquired . | . . . Parts Damaged . | . . . Bothacking | -11 -10 -9 ------------ Run | Yrd Mat Mat Used RIF Installer . | . . . Robots Hacked . | . . . Non-combat . | . . . Combat . | . . . Robot Hacks Applied . | . . . Relay Couplers Released . | . . . Fabnet Peak Effective % . | . . . Robots Rewired . | . . . Allies Hacked . | . . . Hacks Repelled . | . . . Allies | -11 -10 -9 -------- Run | Yrd Mat Mat Total Allies . | . . . Largest Group . | . . . Highest-Rated Group . | . . . Highest-Rated Ally . | . . . Total Orders . | . . . Ally Attacks . | . . . Total Damage . | . . . Kills . | . . . Allies Corrupted . | . . . Allies Melted . | . . . Intel | -11 -10 -9 ------- Run | Yrd Mat Mat Robot Analysis Total . | . . . Derelict Logs Recovered . | . . . Drone Launches . | . . . Drone Recoveries . | . . . Exploration | -11 -10 -9 ------------- Run | Yrd Mat Mat Turns Passed 511 | 58 336 117 Spaces Moved 373 | 46 261 66 Core 2 | 2 . . Treads . | . . . Legs 41 | . . 41 Wheels 330 | 44 261 25 Hover . | . . . Flight . | . . . Fastest Speed 50 | 50 100 100 Average Speed 101 | 97 100 112 Slowest Speed 120 | 100 100 120 Overloaded Moves . | . . . Propulsion Burnouts . | . . . Robots Hopped . | . . . Cave-ins Triggered . | . . . Exploration Rate (%) 17 | 2 36 15 Regions Visited 2 Branch Regions . Pre-discovered Areas . | . . . Known Exits Taken 1 | . 1 . Unknown Exits Taken 1 | 1 . . Scrap Searched . | . . . Spaces Dug . | . . . Terrain Destroyed 28 | . . 28 Melee . | . . . Projectile . | . . . AOE 28 | . . 28 Terrain Rammed . | . . . Walls Destroyed . | . . . Machines Disabled . | . . . Actions | -11 -10 -9 --------- Run | Yrd Mat Mat Total 442 | 56 295 91 Wait 11 | . 10 1 Move 371 | 45 260 66 Hop . | . . . Pick Up 8 | 4 3 1 Fast Attach 7 | 6 1 . Attach 4 | . . 4 Detach . | . . . Swap 2 | . 1 1 Drop . | . . . Fire 37 | . 20 17 Melee . | . . . Ram 1 | 1 . . Kick 1 | . . 1 Crush . | . . . Escape Stasis . | . . . Rewire . | . . . Trap . | . . . Miscellaneous . | . . . Route ------- -11/Scrapyard -10/Materials -9/Materials History --------- Turn | Location | Event 6 | -11/Scrapyard | Discovered new exit (range 16) 59 | -11/Scrapyard | Entered Materials 185 | -10/Materials | Discovered new exit (range 12) 194 | -10/Materials | Identified exit to Materials 313 | -10/Materials | Build established: Mutant 395 | -10/Materials | Entered another Materials area 395 | -9/Materials | Evolved 2 slots: Propulsion x1, Utility x1 463 | -9/Materials | Lost 3 parts (1p2n) 475 | -9/Materials | Destroyed 11 combat bots 512 | -9/Materials | Self-destructed Last Messages --------------- U-05 Engineer lays Concrete. K-01 Serf collects debris. U-05 Engineer lays Concrete. K-01 Serf collects debris. U-05 Engineer lays Concrete. K-01 Serf collects debris. R-06 Scavenger inserts Flight Unit into recycling unit. U-05 Engineer lays Concrete. K-01 Serf collects debris. U-05 Engineer lays Concrete. Beam Cannon destroyed. Y-45 Defender destroyed. The unstable cave ceiling collapses. U-05 Engineer lays Concrete. U-05 Engineer builds a Wall. U-05 Engineer lays Concrete. Kicked U-05 Engineer out of the way. U-05 Engineer lays Concrete. U-05 Engineer builds a Wall. Map ----- +----------------------------------------------------+ | ?????????????????????????????????????????????????? | | ?????????????????????????????????????????????????? | | ?????????????????????????????????????????????????? | | ?????????????????????????????????????????????????? | | ?????????????????????????????????????????????????? | | ??????????????????????? ?????????????????????? | | ??????????????????????? ?????????????????????? | | ??????????????????????? ?????????????????????? | | ??????????????????????? ?????????????????????? | | ???????????????????????# ###???????????????????? | | ???????????????????????# Y # ???????????????????? | | ???????????????????????# # T???????????????????? | | ???????????????????????# + ????????????????????? | | ??????????????????????## # ????????????????????? | | ?????????????????????## ##???????????????????? | | ????????????# ???????# #???????????????????? | | ????????????+ ###### ????????????????????? | | ????????????# #############????????? | | ????????????# [% ????????? | | ?????????????? ????????? | | ????????????????????# ????????? | | ????????????????????## #u## #####???????????????? | | ?????????????????????#??# ##*#???????????????????? | | ????????????????????????# #??#???????????????????? | | ????????????????????????# #??????????????????????? | | ??????????????????#######@##?????????????????????? | | ??????????????????# # ????????????????????? | | ??????????????????# w # ????????????????????? | | ??????????????????# # ????????????????????? | | ??????????????????# # ????????????????????? | | ??????????????????# # ????????????????????? | | ??????????????????# u # ???????????????????? | | ??????????????????# # ########????????????? | | ??????????????????# # ## #? ???????? | | ????????????# ????# # ## " # #??????? | | ???????????## #### ##+#### ## """ + #??????? | | ????????"" # =*%[ ##["" #? ???????? | | ????????"" + ^ #%""" #? ???????? | | ????????"" # %%+=*"" ## #???????? | | ???????????# ^ """ #=""" ## #???????? | | ???????????# "Y" # """ ## #???????? | | ???????????# """"" # """ ## #####???? | | ???????????# """"" # " ## ????? | | ???????????# """"" # ## ??????? | | ???????????# # ## #???????? | | ??????????? ####### #???????? | | ??????????? ###### #???????? | | ????????????#+??????# #???????? | | ????????????????????# ##+## ####### #???????? | | ????????????????????######===% ?????# #######?? | +----------------------------------------------------+ Best States ------------- Heat Dissipation 28 Energy Generation 10 Energy Capacity 250 Matter Stores 300 Matter Capacity 300 Sight Range 16 Terrain Scan Density 10 Propulsion Shielding 33 Evasion (%) 50 Item Schematics ----------------- None Robot Schematics ------------------ None Fabricated ------------ Nothing Alien Tech Used ----------------- None Achievements -------------- None Challenges ------------ None Game ------ Seed AccelerationMinesnifferCore Manual? 0 Play Time 00:10:28 Cumulative 7.4 hours Start 2024.04.03 @ 07:31:32 End 2024.04.03 @ 10:05:12 Sessions 1 Manual Loads 0 Difficulty Rogue Special Mode None Game No. 11 Rogue 11 Adventurer 0 Explorer 0 Win Type - Total 0 Types 0/0/0/0/0/0/0/0/0 Lore% 3 Gallery% 13 Achievement% 14 Wizard Run 0 Options --------- Layout 1 ASCII 0 Keyboard 1 Movement Numpad Keybinds 0 Fullscreen 1 Font 24/Smallcaps Map View 50x35 Zoom Use 0% Tactical HUD 0 Map Filters NONE Filters NONE Steam 1 RUN: 1873cae9-40f7-4dd9-a51c-7c6e1c7cd974